[Event "44th Chess Olympiad Women 2022"]
[Site "Chennai"]
[Date "2022.08.08"]
[Round "10.9"]
[White "Agrest, Inna"]
[Black "Nandhidhaa, P V.."]
[Result "0-1"]
[WhiteElo "2217"]
[BlackElo "2312"]
[Annotator "RC"]
[PlyCount "134"]
[EventDate "2022.??.??"]
[TimeControl "60"]

1. e4 {[%emt 0:00:06]} c5 {[%emt 0:00:03]} 2. Nf3 {[%emt 0:00:08]} Nc6 {
[%emt 0:00:05]} 3. d4 {[%emt 0:00:13]} cxd4 {[%emt 0:00:08]} 4. Nxd4 {[%emt 0:
00:00]} Nf6 {[%emt 0:00:05]} 5. Nc3 {[%emt 0:00:34]} d6 {[%emt 0:06:04]} 6. Bg5
{[%emt 0:01:54]} e6 {[%emt 0:00:16]} 7. Qd2 {[%emt 0:00:51]} a6 {[%emt 0:01:23]
} 8. O-O-O {[%emt 0:01:02]} Be7 {[%emt 0:00:09]} 9. f3 {[%emt 0:01:02]} Nxd4 {
[%emt 0:02:46]} 10. Qxd4 {[%emt 0:00:08]} b5 {[%emt 0:01:27]} 11. Kb1 {[%emt 0:
00:00]} Bb7 {[%emt 0:03:13]} 12. Bd3 {[%emt 0:13:42]} h6 {[%emt 0:13:45]} 13.
Bc1 {[%emt 0:02:47]} Qc7 {[%emt 0:05:37]} 14. Rhe1 {[%emt 0:08:35]} O-O {
[%emt 0:12:17]} 15. Qf2 {[%emt 0:04:49]} b4 {[%emt 0:03:08]} 16. Ne2 {[%emt 0:
00:00]} a5 {[%emt 0:06:27]} 17. Qg3 {[%emt 0:06:17]} Kh8 {[%emt 0:01:45]} 18.
Qh3 {[%emt 0:01:31]} Nh7 {[%emt 0:04:23]} 19. g4 {[%emt 0:07:27]} a4 {[%emt 0:
00:00]} 20. f4 {[%emt 0:05:41]} Rfc8 {[%emt 0:08:46]} 21. g5 {[%emt 0:09:12]}
b3 {[%emt 0:01:13]} 22. cxb3 {[%emt 0:05:17]} axb3 {[%emt 0:00:13]} 23. a3 {
[%emt 0:00:30]} hxg5 {[%emt 0:03:25]} 24. fxg5 {[%emt 0:01:48]} Ba6 {[%emt 0:
00:00]} 25. Nc3 {[%emt 0:00:27]} Qc5 {[%emt 0:03:58]} 26. e5 {[%emt 0:10:53]}
Bxd3+ {[%emt 0:07:49]} 27. Rxd3 {[%emt 0:00:05]} dxe5 {[%emt 0:00:25]} 28. Re4
{[%emt 0:01:20]} Qf2 {[%emt 0:00:45]} 29. Re2 {[%emt 0:03:11]} Qf5 {[%emt 0:00:
00]} 30. Qxf5 {[%emt 0:03:00]} exf5 {[%emt 0:00:07]} 31. Rxe5 {[%emt 0:00:11]}
Bxg5 {[%emt 0:00:52]} 32. Bxg5 {[%emt 0:00:08]} Nxg5 {[%emt 0:00:02]} 33. Rxf5
{[%emt 0:00:14]} f6 {[%emt 0:00:26]} 34. Rb5 {[%emt 0:01:20]} Rab8 {[%emt 0:00:
00]} 35. Rxb8 {[%emt 0:01:28]} Rxb8 {[%emt 0:00:02]} 36. Rd5 {[%emt 0:00:32]}
Re8 {[%emt 0:01:36]} 37. a4 {[%emt 0:00:17]} Re1+ {[%emt 0:01:16]} 38. Rd1 {
[%emt 0:00:15]} Re5 {[%emt 0:00:23]} 39. Nd5 {[%emt 0:01:06]} Ne4 {[%emt 0:00:
00]} 40. Nc3 {[%emt 0:00:27]} Nf2 {[%emt 0:03:28]} 41. Rd8+ {[%emt 0:08:37]}
Kh7 {[%emt 0:00:02]} 42. Kc1 {[%emt 0:00:12]} Rh5 {[%emt 0:02:34]} 43. Rb8 {
[%emt 0:09:27]} Nd3+ {[%emt 0:05:14]} 44. Kd2 {[%emt 0:00:31]} Nxb2 {[%emt 0:
00:00]} 45. Rxb3 {[%emt 0:00:28]} Rxh2+ {[%emt 0:00:26]} 46. Ke1 {[%emt 0:00:
00]} Nd3+ {[%emt 0:04:18]} 47. Kf1 {[%emt 0:00:27]} Rh1+ {[%emt 0:00:39]} 48.
Kg2 {[%emt 0:00:17]} Ra1 {[%emt 0:00:33]} 49. Rb7 {[%emt 0:02:49]} Kh6 {
[%emt 0:04:12]} 50. Ra7 {[%emt 0:02:09]} f5 {[%emt 0:03:44]} 51. Nd5 {[%emt 0:
00:00]} g5 {[%emt 0:03:34]} 52. Ra8 {[%emt 0:02:19]} Ra2+ {[%emt 0:01:05]} 53.
Kg3 {[%emt 0:00:38]} Nc5 {[%emt 0:02:51]} 54. Ne7 {[%emt 0:00:33]} Ra3+ {
[%emt 0:01:51]} 55. Kg2 {[%emt 0:00:08]} f4 {[%emt 0:00:40]} 56. Rh8+ {[%emt 0:
00:00]} Kg7 {[%emt 0:00:24]} 57. Rg8+ {[%emt 0:00:19]} Kf6 {[%emt 0:01:06]} 58.
Nd5+ {[%emt 0:00:41]} Kf5 {[%emt 0:00:23]} 59. Rf8+ {[%emt 0:00:05]} Ke5 {
[%emt 0:00:09]} 60. Nb6 {[%emt 0:00:20]} Rg3+ {[%emt 0:02:06]} 61. Kh2 {
[%emt 0:00:14]} Rc3 {[%emt 0:00:40]} 62. Re8+ {[%emt 0:00:54]} Kf5 {[%emt 0:00:
00]} 63. a5 {[%emt 0:00:55]} Rc2+ {[%emt 0:00:46]} 64. Kg1 {[%emt 0:00:02]} Kg4
{[%emt 0:00:28]} 65. Nd5 {[%emt 0:00:18]} Kg3 {[%emt 0:01:06]} 66. Kf1 {
[%emt 0:00:43]} f3 {[%emt 0:01:07]} 67. Re3 {[%emt 0:00:54]} Nd3 {[%emt 0:00:
00]} 0-1

[Event "44th Chess Olympiad Women 2022"]
[Site "Chennai"]
[Date "2022.08.08"]
[Round "10.9"]
[White "Johansson, Viktoria"]
[Black "Pratyusha, Bodda"]
[Result "0-1"]
[WhiteElo "2041"]
[BlackElo "2310"]
[Annotator "RC"]
[PlyCount "128"]
[EventDate "2022.??.??"]
[TimeControl "60"]

1. d4 {[%emt 0:00:02]} d5 {[%emt 0:00:17]} 2. c4 {[%emt 0:00:14]} e6 {[%emt 0:
00:00]} 3. Nc3 {[%emt 0:00:12]} Nf6 {[%emt 0:00:07]} 4. cxd5 {[%emt 0:00:15]}
exd5 {[%emt 0:00:06]} 5. Bg5 {[%emt 0:00:27]} Be7 {[%emt 0:00:24]} 6. e3 {
[%emt 0:00:17]} c6 {[%emt 0:00:25]} 7. Bd3 {[%emt 0:00:41]} Nbd7 {[%emt 0:00:
00]} 8. Qc2 {[%emt 0:02:29]} Nf8 {[%emt 0:00:29]} 9. h3 {[%emt 0:01:03]} Ne6 {
[%emt 0:00:10]} 10. Bh4 {[%emt 0:03:49]} g6 {[%emt 0:00:16]} 11. Nf3 {[%emt 0:
00:00]} Ng7 {[%emt 0:00:06]} 12. O-O {[%emt 0:04:28]} O-O {[%emt 0:00:37]} 13.
Rac1 {[%emt 0:04:38]} Bf5 {[%emt 0:00:23]} 14. a3 {[%emt 0:11:10]} a5 {[%emt 0:
00:00]} 15. Na4 {[%emt 0:05:57]} Bxd3 {[%emt 0:03:43]} 16. Qxd3 {[%emt 0:00:08]
} Nf5 {[%emt 0:00:39]} 17. Bg5 {[%emt 0:07:19]} Nd7 {[%emt 0:03:22]} 18. Bxe7 {
[%emt 0:04:45]} Qxe7 {[%emt 0:01:48]} 19. Nc5 {[%emt 0:03:29]} Nd6 {[%emt 0:00:
00]} 20. Nd2 {[%emt 0:18:05]} Rfe8 {[%emt 0:04:08]} 21. Rfe1 {[%emt 0:01:06]}
f5 {[%emt 0:05:45]} 22. Nf3 {[%emt 0:09:43]} Nf6 {[%emt 0:11:10]} 23. Ne5 {
[%emt 0:04:13]} Rec8 {[%emt 0:01:47]} 24. Qb3 {[%emt 0:02:58]} Kg7 {[%emt 0:00:
00]} 25. Na4 {[%emt 0:04:02]} Rc7 {[%emt 0:08:11]} 26. Qd1 {[%emt 0:03:20]} b5
{[%emt 0:09:19]} 27. Nc5 {[%emt 0:00:20]} a4 {[%emt 0:01:25]} 28. Ncd3 {
[%emt 0:04:31]} Nc4 {[%emt 0:01:51]} 29. Qe2 {[%emt 0:00:07]} Nd7 {[%emt 0:00:
00]} 30. Nxd7 {[%emt 0:00:38]} Qxd7 {[%emt 0:00:22]} 31. Nc5 {[%emt 0:00:24]}
Qd6 {[%emt 0:00:22]} 32. Rc2 {[%emt 0:00:40]} Re7 {[%emt 0:00:16]} 33. Qd3 {
[%emt 0:01:27]} Rae8 {[%emt 0:03:08]} 34. Rce2 {[%emt 0:00:54]} Qf6 {[%emt 0:
00:00]} 35. b3 {[%emt 0:00:44]} axb3 {[%emt 0:00:31]} 36. Qxb3 {[%emt 0:00:08]}
f4 {[%emt 0:01:08]} 37. a4 {[%emt 0:01:48]} fxe3 {[%emt 0:04:19]} 38. fxe3 {
[%emt 0:00:14]} Nxe3 {[%emt 0:00:40]} 39. Qd3 {[%emt 0:00:54]} Nc4 {[%emt 0:00:
00]} 40. Rxe7+ {[%emt 0:00:12]} Rxe7 {[%emt 0:00:06]} 41. Rxe7+ {[%emt 0:13:07]
} Qxe7 {[%emt 0:00:05]} 42. axb5 {[%emt 0:01:41]} cxb5 {[%emt 0:00:05]} 43. Kf2
{[%emt 0:10:58]} b4 {[%emt 0:01:54]} 44. Qf3 {[%emt 0:01:03]} Qf6 {[%emt 0:00:
00]} 45. Nb3 {[%emt 0:01:22]} Qxf3+ {[%emt 0:04:02]} 46. Kxf3 {[%emt 0:00:03]}
Kf6 {[%emt 0:00:04]} 47. h4 {[%emt 0:02:05]} h6 {[%emt 0:00:37]} 48. g3 {
[%emt 0:02:04]} Kf5 {[%emt 0:01:45]} 49. g4+ {[%emt 0:01:02]} Kf6 {[%emt 0:00:
00]} 50. Kf4 {[%emt 0:00:28]} g5+ {[%emt 0:00:39]} 51. hxg5+ {[%emt 0:00:06]}
hxg5+ {[%emt 0:00:04]} 52. Kf3 {[%emt 0:00:08]} Ke7 {[%emt 0:01:55]} 53. Ke2 {
[%emt 0:00:17]} Kd6 {[%emt 0:00:08]} 54. Kd3 {[%emt 0:00:20]} Kc6 {[%emt 0:00:
00]} 55. Nc5 {[%emt 0:00:13]} Kb5 {[%emt 0:05:54]} 56. Kc2 {[%emt 0:00:12]} Na5
{[%emt 0:05:08]} 57. Kb2 {[%emt 0:01:26]} Kc4 {[%emt 0:04:28]} 58. Ne6 {
[%emt 0:00:22]} b3 {[%emt 0:04:06]} 59. Nxg5 {[%emt 0:01:35]} Kb4 {[%emt 0:00:
00]} 60. Nf3 {[%emt 0:00:49]} Nc4+ {[%emt 0:00:04]} 61. Kb1 {[%emt 0:00:50]}
Ka3 {[%emt 0:00:11]} 62. g5 {[%emt 0:00:14]} b2 {[%emt 0:00:08]} 63. g6 {
[%emt 0:00:37]} Kb3 {[%emt 0:00:10]} 64. g7 {[%emt 0:00:10]} Na3# {[%emt 0:00:
00]} 0-1

[Event "44th Chess Olympiad Women 2022"]
[Site "Chennai"]
[Date "2022.08.08"]
[Round "10.9"]
[White "Karavade, Eesha"]
[Black "Cramling, Pia"]
[Result "1/2-1/2"]
[WhiteElo "2339"]
[BlackElo "2459"]
[Annotator "RC"]
[PlyCount "91"]
[EventDate "2022.??.??"]
[TimeControl "60"]

1. d4 {[%emt 0:00:09]} Nf6 {[%emt 0:00:08]} 2. c4 {[%emt 0:00:23]} e6 {[%emt 0:
00:00]} 3. Nc3 {[%emt 0:00:44]} Bb4 {[%emt 0:00:06]} 4. e3 {[%emt 0:00:30]} O-O
{[%emt 0:00:18]} 5. Bd2 {[%emt 0:00:36]} c5 {[%emt 0:09:14]} 6. a3 {[%emt 0:00:
00]} Bxc3 {[%emt 0:00:09]} 7. Bxc3 {[%emt 0:00:06]} Ne4 {[%emt 0:00:09]} 8. Rc1
{[%emt 0:03:23]} d6 {[%emt 0:07:08]} 9. Nf3 {[%emt 0:11:00]} b6 {[%emt 0:10:20]
} 10. Be2 {[%emt 0:03:56]} Bb7 {[%emt 0:02:00]} 11. O-O {[%emt 0:00:06]} Nxc3 {
[%emt 0:01:18]} 12. Rxc3 {[%emt 0:00:11]} Qe7 {[%emt 0:01:23]} 13. Qb1 {
[%emt 0:18:49]} Nd7 {[%emt 0:02:37]} 14. e4 {[%emt 0:08:08]} e5 {[%emt 0:17:45]
} 15. d5 {[%emt 0:00:50]} g6 {[%emt 0:01:18]} 16. Nd2 {[%emt 0:07:19]} Rae8 {
[%emt 0:01:55]} 17. Re3 {[%emt 0:05:27]} Kh8 {[%emt 0:06:18]} 18. Qc2 {[%emt 0:
00:00]} Bc8 {[%emt 0:01:24]} 19. Nb1 {[%emt 0:01:30]} f5 {[%emt 0:09:34]} 20.
exf5 {[%emt 0:00:30]} gxf5 {[%emt 0:03:49]} 21. f4 {[%emt 0:00:43]} Qf6 {
[%emt 0:00:49]} 22. Nc3 {[%emt 0:02:32]} exf4 {[%emt 0:05:18]} 23. Rxe8 {
[%emt 0:00:21]} Rxe8 {[%emt 0:00:01]} 24. Rxf4 {[%emt 0:00:50]} Ne5 {[%emt 0:
00:00]} 25. Rf1 {[%emt 0:09:17]} Bd7 {[%emt 0:02:12]} 26. Kh1 {[%emt 0:01:15]}
Qh4 {[%emt 0:09:12]} 27. Qc1 {[%emt 0:05:57]} Ng6 {[%emt 0:01:03]} 28. Qd2 {
[%emt 0:05:05]} Qd4 {[%emt 0:01:21]} 29. Qh6 {[%emt 0:00:29]} Qg7 {[%emt 0:00:
00]} 30. Qxg7+ {[%emt 0:01:28]} Kxg7 {[%emt 0:00:01]} 31. Kg1 {[%emt 0:00:34]}
Kf6 {[%emt 0:00:52]} 32. Kf2 {[%emt 0:00:29]} f4 {[%emt 0:01:01]} 33. Rd1 {
[%emt 0:03:05]} Re7 {[%emt 0:01:21]} 34. Bd3 {[%emt 0:03:01]} Re5 {[%emt 0:00:
00]} 35. Rd2 {[%emt 0:00:32]} Rh5 {[%emt 0:00:40]} 36. h3 {[%emt 0:00:09]} Re5
{[%emt 0:00:16]} 37. Ne4+ {[%emt 0:00:43]} Ke7 {[%emt 0:00:04]} 38. Re2 {
[%emt 0:00:10]} Nh4 {[%emt 0:02:14]} 39. g3 {[%emt 0:01:48]} fxg3+ {[%emt 0:00:
00]} 40. Kxg3 {[%emt 0:00:33]} Nf5+ {[%emt 0:02:13]} 41. Kf4 {[%emt 0:30:34]}
Nd4 {[%emt 0:31:01]} 42. Re3 {[%emt 0:00:00]} Rf5+ {[%emt 0:00:00]} 43. Kg3 {
[%emt 0:00:00]} Re5 {[%emt 0:00:00]} 44. Kf4 {[%emt 0:00:00]} Rf5+ {[%emt 0:00:
00]} 45. Kg3 {[%emt 0:00:00]} Re5 {[%emt 0:00:00]} 46. Kf4 {[%emt 0:00:00]}
1/2-1/2

[Event "44th Chess Olympiad Women 2022"]
[Site "Chennai"]
[Date "2022.08.08"]
[Round "10.9"]
[White "Sahithi Varshini M"]
[Black "Cramling Bellon, Anna"]
[Result "1/2-1/2"]
[WhiteElo "2312"]
[BlackElo "2065"]
[Annotator "RC"]
[PlyCount "106"]
[EventDate "2022.??.??"]
[TimeControl "60"]

1. e4 {[%emt 0:00:56]} c5 {[%emt 0:00:04]} 2. Nf3 {[%emt 0:00:21]} e6 {[%emt 0:
00:00]} 3. d4 {[%emt 0:00:25]} cxd4 {[%emt 0:00:19]} 4. Nxd4 {[%emt 0:00:23]}
Nf6 {[%emt 0:00:43]} 5. Bd3 {[%emt 0:02:09]} Nc6 {[%emt 0:02:16]} 6. Nb3 {
[%emt 0:10:15]} d5 {[%emt 0:04:52]} 7. exd5 {[%emt 0:05:23]} exd5 {[%emt 0:00:
00]} 8. O-O {[%emt 0:01:07]} Be7 {[%emt 0:07:04]} 9. c3 {[%emt 0:06:20]} O-O {
[%emt 0:01:37]} 10. Bf4 {[%emt 0:03:33]} Bg4 {[%emt 0:05:12]} 11. Be2 {[%emt 0:
00:00]} Bf5 {[%emt 0:05:38]} 12. a4 {[%emt 0:05:37]} Ne4 {[%emt 0:22:18]} 13.
N1d2 {[%emt 0:04:10]} Nc5 {[%emt 0:00:30]} 14. Nxc5 {[%emt 0:04:37]} Bxc5 {
[%emt 0:08:27]} 15. Nb3 {[%emt 0:00:47]} Bb6 {[%emt 0:07:03]} 16. Bb5 {[%emt 0:
00:00]} Bc7 {[%emt 0:07:43]} 17. Bxc7 {[%emt 0:10:30]} Qxc7 {[%emt 0:00:02]}
18. Qxd5 {[%emt 0:05:59]} Be6 {[%emt 0:01:30]} 19. Qd1 {[%emt 0:00:05]} Rfd8 {
[%emt 0:00:31]} 20. Qc2 {[%emt 0:11:15]} Rd5 {[%emt 0:10:35]} 21. Bxc6 {
[%emt 0:00:00]} bxc6 {[%emt 0:03:50]} 22. Nd4 {[%emt 0:00:00]} Rh5 {[%emt 0:00:
00]} 23. f4 {[%emt 0:00:00]} Bc4 {[%emt 0:00:50]} 24. Rf2 {[%emt 0:00:00]} c5 {
[%emt 0:00:42]} 25. Nf5 {[%emt 0:00:00]} Rd8 {[%emt 0:01:33]} 26. Re1 {[%emt 0:
00:00]} g6 {[%emt 0:03:32]} 27. Ne3 {[%emt 0:01:33]} Bd3 {[%emt 0:00:32]} 28.
Qc1 {[%emt 0:00:19]} c4 {[%emt 0:00:19]} 29. Ng4 {[%emt 0:02:02]} Qb6 {[%emt 0:
00:00]} 30. Qe3 {[%emt 0:01:30]} Qxe3 {[%emt 0:01:35]} 31. Rxe3 {[%emt 0:00:05]
} Ra5 {[%emt 0:00:38]} 32. Rd2 {[%emt 0:01:45]} Rxa4 {[%emt 0:00:51]} 33. Ne5 {
[%emt 0:00:07]} Rb8 {[%emt 0:01:55]} 34. Nxd3 {[%emt 0:05:24]} cxd3 {[%emt 0:
00:00]} 35. Rexd3 {[%emt 0:00:28]} Rxf4 {[%emt 0:00:12]} 36. g3 {[%emt 0:00:49]
} Ra4 {[%emt 0:00:46]} 37. Kf2 {[%emt 0:00:18]} Rb3 {[%emt 0:00:52]} 38. Re3 {
[%emt 0:01:22]} a5 {[%emt 0:00:39]} 39. Ree2 {[%emt 0:00:40]} Rc4 {[%emt 0:00:
00]} 40. Rc2 {[%emt 0:00:54]} a4 {[%emt 0:00:23]} 41. Re8+ {[%emt 0:30:40]} Kg7
{[%emt 0:30:10]} 42. Ra8 {[%emt 0:00:29]} h5 {[%emt 0:00:00]} 43. Ra7 {[%emt 0:
00:00]} Rb6 {[%emt 0:00:00]} 44. h3 {[%emt 0:00:00]} h4 {[%emt 0:00:00]} 45.
gxh4 {[%emt 0:00:00]} Rxh4 {[%emt 0:00:00]} 46. Kg3 {[%emt 0:00:00]} g5 {
[%emt 0:00:00]} 47. Rf2 {[%emt 0:00:00]} Rf6 {[%emt 0:00:00]} 48. Rxf6 {
[%emt 0:00:00]} Kxf6 {[%emt 0:00:00]} 49. Ra6+ {[%emt 0:00:00]} Ke7 {[%emt 0:
00:00]} 50. Ra7+ {[%emt 0:00:00]} Ke6 {[%emt 0:00:00]} 51. Ra6+ {[%emt 0:00:00]
} Ke7 {[%emt 0:00:00]} 52. Ra7+ {[%emt 0:00:00]} Ke6 {[%emt 0:00:00]} 53. Ra6+
{[%emt 0:00:00]} Ke7 {[%emt 0:00:00]} 1/2-1/2

[Event "44th Chess Olympiad Women 2022"]
[Site "Chennai"]
[Date "2022.08.08"]
[Round "10.10"]
[White "Cassi, Elisa"]
[Black "Gaal, Zsoka"]
[Result "0-1"]
[WhiteElo "1922"]
[BlackElo "2313"]
[Annotator "RC"]
[PlyCount "78"]
[EventDate "2022.??.??"]
[TimeControl "60"]

1. e4 {[%emt 0:00:04]} c5 {[%emt 0:00:16]} 2. Nf3 {[%emt 0:00:05]} Nc6 {
[%emt 0:00:07]} 3. d4 {[%emt 0:00:04]} cxd4 {[%emt 0:00:07]} 4. Nxd4 {[%emt 0:
00:00]} Nf6 {[%emt 0:00:08]} 5. Nc3 {[%emt 0:00:07]} d6 {[%emt 0:00:07]} 6. f3
{[%emt 0:00:36]} e5 {[%emt 0:00:18]} 7. Nb3 {[%emt 0:00:05]} Be7 {[%emt 0:00:
00]} 8. Be3 {[%emt 0:00:09]} Be6 {[%emt 0:00:08]} 9. Qe2 {[%emt 0:00:35]} O-O {
[%emt 0:00:17]} 10. O-O-O {[%emt 0:00:46]} Qc8 {[%emt 0:00:09]} 11. Kb1 {
[%emt 0:01:23]} Rd8 {[%emt 0:01:28]} 12. Nd5 {[%emt 0:00:48]} Bxd5 {[%emt 0:00:
00]} 13. exd5 {[%emt 0:00:05]} Nb4 {[%emt 0:00:22]} 14. g4 {[%emt 0:00:25]}
Nfxd5 {[%emt 0:05:25]} 15. Bc1 {[%emt 0:00:25]} Nb6 {[%emt 0:21:53]} 16. f4 {
[%emt 0:01:39]} a5 {[%emt 0:04:24]} 17. a3 {[%emt 0:03:50]} a4 {[%emt 0:02:42]}
18. Nd4 {[%emt 0:00:56]} exd4 {[%emt 0:11:54]} 19. axb4 {[%emt 0:01:08]} Re8 {
[%emt 0:06:54]} 20. Rxd4 {[%emt 0:17:47]} Bf6 {[%emt 0:03:13]} 21. Re4 {
[%emt 0:01:01]} Rxe4 {[%emt 0:00:33]} 22. Qxe4 {[%emt 0:00:06]} a3 {[%emt 0:00:
00]} 23. Bb5 {[%emt 0:02:51]} g6 {[%emt 0:11:47]} 24. g5 {[%emt 0:11:03]} d5 {
[%emt 0:02:14]} 25. Qd3 {[%emt 0:03:30]} Bxb2 {[%emt 0:02:41]} 26. Bxb2 {
[%emt 0:02:48]} axb2 {[%emt 0:00:07]} 27. Kxb2 {[%emt 0:00:35]} Qb8 {[%emt 0:
00:00]} 28. Qd4 {[%emt 0:15:26]} Qa7 {[%emt 0:00:41]} 29. Kc3 {[%emt 0:00:19]}
Qa3+ {[%emt 0:03:15]} 30. Kd2 {[%emt 0:01:32]} Nc4+ {[%emt 0:03:38]} 31. Bxc4 {
[%emt 0:07:35]} dxc4 {[%emt 0:00:16]} 32. Rb1 {[%emt 0:07:34]} Re8 {[%emt 0:00:
00]} 33. h4 {[%emt 0:04:46]} Qf3 {[%emt 0:00:48]} 34. Rg1 {[%emt 0:03:29]} Ra8
{[%emt 0:10:21]} 35. c3 {[%emt 0:03:15]} Qh3 {[%emt 0:01:28]} 36. Kc1 {[%emt 0:
00:00]} Qh2 {[%emt 0:00:17]} 37. Kb1 {[%emt 0:01:39]} Qa2+ {[%emt 0:00:08]} 38.
Kc1 {[%emt 0:00:03]} Qa1+ {[%emt 0:00:16]} 39. Kd2 {[%emt 0:00:04]} Ra2+ {
[%emt 0:00:12]} 0-1

[Event "44th Chess Olympiad Women 2022"]
[Site "Chennai"]
[Date "2022.08.08"]
[Round "10.10"]
[White "Hoang, Thanh Trang"]
[Black "Brunello, Marina"]
[Result "1-0"]
[WhiteElo "2376"]
[BlackElo "2341"]
[Annotator "RC"]
[PlyCount "103"]
[EventDate "2022.??.??"]
[TimeControl "60"]

1. d4 {[%emt 0:00:08]} d5 {[%emt 0:00:12]} 2. c4 {[%emt 0:00:25]} c6 {[%emt 0:
00:00]} 3. Nf3 {[%emt 0:00:16]} Nf6 {[%emt 0:00:12]} 4. Qc2 {[%emt 0:00:59]}
dxc4 {[%emt 0:00:44]} 5. Qxc4 {[%emt 0:00:19]} Bf5 {[%emt 0:00:05]} 6. g3 {
[%emt 0:01:02]} e6 {[%emt 0:00:09]} 7. Bg2 {[%emt 0:00:19]} Be7 {[%emt 0:00:15]
} 8. O-O {[%emt 0:00:41]} O-O {[%emt 0:00:43]} 9. e3 {[%emt 0:02:05]} Nbd7 {
[%emt 0:00:59]} 10. Rd1 {[%emt 0:01:07]} Qc7 {[%emt 0:04:49]} 11. Nc3 {[%emt 0:
00:00]} e5 {[%emt 0:03:11]} 12. h3 {[%emt 0:02:23]} Bg6 {[%emt 0:14:52]} 13.
dxe5 {[%emt 0:06:29]} Nxe5 {[%emt 0:00:23]} 14. Nxe5 {[%emt 0:00:15]} Qxe5 {
[%emt 0:00:03]} 15. Qb3 {[%emt 0:15:14]} Qc7 {[%emt 0:12:51]} 16. e4 {[%emt 0:
00:00]} Bc5 {[%emt 0:03:51]} 17. Bf4 {[%emt 0:20:13]} Qb6 {[%emt 0:14:41]} 18.
Qc2 {[%emt 0:02:36]} Be7 {[%emt 0:00:37]} 19. Be3 {[%emt 0:04:21]} Qa5 {
[%emt 0:02:13]} 20. f4 {[%emt 0:07:32]} h6 {[%emt 0:07:10]} 21. Qf2 {[%emt 0:
00:00]} Bb4 {[%emt 0:05:20]} 22. Bd4 {[%emt 0:05:16]} Ne8 {[%emt 0:04:26]} 23.
a3 {[%emt 0:04:25]} Be7 {[%emt 0:03:11]} 24. f5 {[%emt 0:01:28]} Bh7 {[%emt 0:
00:00]} 25. e5 {[%emt 0:00:54]} Rd8 {[%emt 0:02:13]} 26. b4 {[%emt 0:01:02]}
Qc7 {[%emt 0:00:03]} 27. f6 {[%emt 0:06:16]} gxf6 {[%emt 0:00:43]} 28. exf6 {
[%emt 0:00:21]} Rxd4 {[%emt 0:08:49]} 29. Rxd4 {[%emt 0:00:44]} Bxf6 {[%emt 0:
00:00]} 30. Rg4+ {[%emt 0:00:58]} Bg6 {[%emt 0:00:27]} 31. Rc1 {[%emt 0:01:20]}
Qe5 {[%emt 0:04:43]} 32. Ne4 {[%emt 0:03:46]} Bg7 {[%emt 0:00:03]} 33. Rf4 {
[%emt 0:01:52]} a5 {[%emt 0:01:58]} 34. Rd1 {[%emt 0:01:07]} axb4 {[%emt 0:00:
00]} 35. axb4 {[%emt 0:00:06]} Qc7 {[%emt 0:02:02]} 36. Nc5 {[%emt 0:01:32]}
Nd6 {[%emt 0:00:35]} 37. Rg4 {[%emt 0:02:22]} Re8 {[%emt 0:02:18]} 38. Qf4 {
[%emt 0:01:07]} Nb5 {[%emt 0:01:47]} 39. Qxc7 {[%emt 0:00:40]} Nxc7 {[%emt 0:
00:00]} 40. Rd7 {[%emt 0:00:32]} Nb5 {[%emt 0:01:34]} 41. Be4 {[%emt 0:09:29]}
Bxe4 {[%emt 0:11:11]} 42. Nxe4 {[%emt 0:02:00]} Kf8 {[%emt 0:01:23]} 43. Rxb7 {
[%emt 0:05:32]} Bd4+ {[%emt 0:02:15]} 44. Nf2 {[%emt 0:00:25]} Nc3 {[%emt 0:00:
00]} 45. Kg2 {[%emt 0:02:40]} c5 {[%emt 0:00:04]} 46. Rf4 {[%emt 0:00:38]} Re7
{[%emt 0:00:26]} 47. Rxe7 {[%emt 0:01:03]} Kxe7 {[%emt 0:00:03]} 48. Nd3 {
[%emt 0:01:46]} Nd5 {[%emt 0:00:48]} 49. Re4+ {[%emt 0:00:28]} Kd6 {[%emt 0:00:
00]} 50. bxc5+ {[%emt 0:00:17]} Bxc5 {[%emt 0:00:02]} 51. Nxc5 {[%emt 0:00:13]}
Kxc5 {[%emt 0:00:03]} 52. Rh4 {[%emt 0:00:20]} 1-0

[Event "44th Chess Olympiad Women 2022"]
[Site "Chennai"]
[Date "2022.08.08"]
[Round "10.10"]
[White "Lazarne Vajda, Szidonia"]
[Black "Raccanello, Marianna"]
[Result "1-0"]
[WhiteElo "2313"]
[BlackElo "2067"]
[Annotator "RC"]
[PlyCount "51"]
[EventDate "2022.??.??"]
[TimeControl "60"]

1. d4 {[%emt 0:00:06]} Nf6 {[%emt 0:00:09]} 2. c4 {[%emt 0:00:22]} e6 {[%emt 0:
00:00]} 3. Nc3 {[%emt 0:01:06]} Bb4 {[%emt 0:00:06]} 4. Nf3 {[%emt 0:00:45]}
O-O {[%emt 0:00:26]} 5. Bg5 {[%emt 0:00:50]} c5 {[%emt 0:02:43]} 6. e3 {
[%emt 0:11:02]} Qa5 {[%emt 0:07:14]} 7. Bxf6 {[%emt 0:03:14]} Bxc3+ {[%emt 0:
00:00]} 8. bxc3 {[%emt 0:00:07]} Qxc3+ {[%emt 0:00:20]} 9. Nd2 {[%emt 0:01:35]}
gxf6 {[%emt 0:00:17]} 10. Rb1 {[%emt 0:02:08]} cxd4 {[%emt 0:07:12]} 11. Rb3 {
[%emt 0:02:39]} Qa5 {[%emt 0:00:17]} 12. exd4 {[%emt 0:00:34]} Kh8 {[%emt 0:00:
00]} 13. Rh3 {[%emt 0:15:42]} Rg8 {[%emt 0:07:01]} 14. Bd3 {[%emt 0:04:58]} Rg7
{[%emt 0:01:38]} 15. O-O {[%emt 0:15:27]} Nc6 {[%emt 0:06:13]} 16. Nf3 {
[%emt 0:08:24]} d6 {[%emt 0:07:07]} 17. Rg3 {[%emt 0:07:04]} Ne7 {[%emt 0:00:
00]} 18. Qc1 {[%emt 0:05:04]} Ng6 {[%emt 0:13:41]} 19. Qh6 {[%emt 0:00:35]} Bd7
{[%emt 0:00:41]} 20. h4 {[%emt 0:03:57]} Rag8 {[%emt 0:00:31]} 21. h5 {[%emt 0:
00:00]} Nf8 {[%emt 0:00:48]} 22. Qxf6 {[%emt 0:01:37]} Qxh5 {[%emt 0:00:15]}
23. Rg5 {[%emt 0:00:33]} Qxg5 {[%emt 0:07:15]} 24. Nxg5 {[%emt 0:00:05]} Be8 {
[%emt 0:00:15]} 25. f4 {[%emt 0:02:54]} Nd7 {[%emt 0:01:37]} 26. Qh6 {[%emt 0:
00:00]} 1-0

[Event "44th Chess Olympiad Women 2022"]
[Site "Chennai"]
[Date "2022.08.08"]
[Round "10.10"]
[White "Zimina, Olga"]
[Black "Gara, Ticia"]
[Result "1/2-1/2"]
[WhiteElo "2340"]
[BlackElo "2367"]
[Annotator "RC"]
[PlyCount "60"]
[EventDate "2022.??.??"]
[TimeControl "60"]

1. d4 {[%emt 0:00:04]} Nf6 {[%emt 0:00:04]} 2. Nf3 {[%emt 0:00:06]} e6 {
[%emt 0:00:24]} 3. g3 {[%emt 0:00:13]} d5 {[%emt 0:01:17]} 4. Bg2 {[%emt 0:00:
00]} Be7 {[%emt 0:00:39]} 5. O-O {[%emt 0:00:11]} O-O {[%emt 0:01:42]} 6. c4 {
[%emt 0:00:18]} dxc4 {[%emt 0:01:40]} 7. Qc2 {[%emt 0:01:00]} b5 {[%emt 0:00:
00]} 8. a4 {[%emt 0:01:01]} Bb7 {[%emt 0:00:28]} 9. axb5 {[%emt 0:01:19]} a6 {
[%emt 0:00:23]} 10. Nc3 {[%emt 0:03:21]} axb5 {[%emt 0:00:31]} 11. Rxa8 {
[%emt 0:00:49]} Bxa8 {[%emt 0:00:03]} 12. Nxb5 {[%emt 0:00:49]} Bd5 {[%emt 0:
00:00]} 13. Nc3 {[%emt 0:07:52]} Nc6 {[%emt 0:02:27]} 14. e4 {[%emt 0:17:53]}
Nb4 {[%emt 0:00:25]} 15. Qe2 {[%emt 0:01:03]} Bb7 {[%emt 0:02:41]} 16. Bg5 {
[%emt 0:02:33]} c5 {[%emt 0:07:19]} 17. dxc5 {[%emt 0:04:52]} Nd3 {[%emt 0:00:
00]} 18. Nd2 {[%emt 0:24:37]} Nxc5 {[%emt 0:37:10]} 19. Nxc4 {[%emt 0:09:13]}
Qa8 {[%emt 0:00:04]} 20. Rd1 {[%emt 0:14:37]} h6 {[%emt 0:02:15]} 21. Bxf6 {
[%emt 0:00:10]} Bxf6 {[%emt 0:00:02]} 22. Nd6 {[%emt 0:00:07]} Bc6 {[%emt 0:00:
00]} 23. b4 {[%emt 0:05:11]} Nb7 {[%emt 0:02:38]} 24. b5 {[%emt 0:02:16]} Bxc3
{[%emt 0:01:38]} 25. bxc6 {[%emt 0:00:07]} Nxd6 {[%emt 0:00:19]} 26. Rxd6 {
[%emt 0:00:08]} Be5 {[%emt 0:00:53]} 27. Rd1 {[%emt 0:00:27]} Qxc6 {[%emt 0:00:
00]} 28. Qd2 {[%emt 0:00:25]} Qb6 {[%emt 0:00:21]} 29. Bf1 {[%emt 0:01:00]} Bf6
{[%emt 0:00:34]} 30. Qd6 {[%emt 0:01:37]} Qxd6 {[%emt 0:00:00]} 1/2-1/2